[Event "Titled Tuesday Blitz August 08 Early 2023"]
[White "McLaren, Brian"]
[Black "sasvathaa"]
[WhiteFideId "2604612"]
[WhiteElo "2274"]
[BlackElo "2010"]
[Result "1-0"]
[Round "6"]
[TimeControl "180+1"]
[Date "2023.08.08"]
[WhiteClock "0:00:52"]
[BlackClock "0:01:05"]
[Board "219"]

1. g3 {[%clk 0:02:57]}  d5 {[%clk 0:02:57]} 2. Bg2 {[%clk 0:02:56]}  Bf5 {[%clk 0:02:57]} 3. Nf3 {[%clk 0:02:55]}  e6 {[%clk 0:02:57]} 4. b3 {[%clk 0:02:55]}  Nf6 {[%clk 0:02:57]} 5. Bb2 {[%clk 0:02:55]}  h6 {[%clk 0:02:57]} 6. d3 {[%clk 0:02:55]}  Be7 {[%clk 0:02:57]} 7. Nbd2 {[%clk 0:02:54]}  O-O {[%clk 0:02:57]} 8. O-O {[%clk 0:02:54]}  c6 {[%clk 0:02:57]} 9. Re1 {[%clk 0:02:49]}  Bh7 {[%clk 0:02:57]} 10. e4 {[%clk 0:02:48]}  dxe4 {[%clk 0:02:57]} 11. dxe4 {[%clk 0:02:48]}  a5 {[%clk 0:02:51]} 12. Qe2 {[%clk 0:02:45]}  a4 {[%clk 0:02:49]} 13. e5 {[%clk 0:02:34]}  Nd5 {[%clk 0:02:48]} 14. Ne4 {[%clk 0:02:34]}  a3 {[%clk 0:02:42]} 15. Bc1 {[%clk 0:02:28]}  Nd7 {[%clk 0:02:33]} 16. Rd1 {[%clk 0:02:20]}  Bxe4 {[%clk 0:02:31]} 17. Qxe4 {[%clk 0:02:19]}  Nc3 {[%clk 0:02:31]} 18. Qe1 {[%clk 0:02:19]}  Nxd1 {[%clk 0:02:31]} 19. Qxd1 {[%clk 0:02:19]}  Qc7 {[%clk 0:02:26]} 20. Qe2 {[%clk 0:02:18]}  Ra5 {[%clk 0:02:25]} 21. Bd2 {[%clk 0:02:12]}  Rd5 {[%clk 0:02:22]} 22. Bc3 {[%clk 0:02:11]}  b5 {[%clk 0:02:15]} 23. Re1 {[%clk 0:02:09]}  b4 {[%clk 0:02:15]} 24. Bd2 {[%clk 0:02:09]}  Rb5 {[%clk 0:02:10]} 25. c4 {[%clk 0:02:09]}  bxc3 {[%clk 0:02:07]} 26. Bxc3 {[%clk 0:02:09]}  Rbb8 {[%clk 0:02:06]} 27. h4 {[%clk 0:02:07]}  Nb6 {[%clk 0:02:05]} 28. Nd4 {[%clk 0:01:52]}  Nd5 {[%clk 0:02:04]} 29. Bd2 {[%clk 0:01:50]}  c5 {[%clk 0:02:03]} 30. Rc1 {[%clk 0:01:49]}  Qb6 {[%clk 0:01:59]} 31. Nf5 {[%clk 0:01:44]}  exf5 {[%clk 0:01:56]} 32. Bxd5 {[%clk 0:01:42]}  Rbd8 {[%clk 0:01:54]} 33. Bc4 {[%clk 0:01:39]}  Rd4 {[%clk 0:01:44]} 34. Bc3 {[%clk 0:01:24]}  Re4 {[%clk 0:01:43]} 35. Qf3 {[%clk 0:01:24]}  g6 {[%clk 0:01:37]} 36. h5 {[%clk 0:01:23]}  Bg5 {[%clk 0:01:35]} 37. Rd1 {[%clk 0:01:14]}  Kh7 {[%clk 0:01:26]} 38. hxg6+ {[%clk 0:01:11]}  fxg6 {[%clk 0:01:18]} 39. Rd7+ {[%clk 0:01:09]}  Kh8 {[%clk 0:01:16]} 40. e6+ {[%clk 0:01:06]}  Kg8 {[%clk 0:01:15]} 41. e7+ {[%clk 0:01:05]}  Re6 {[%clk 0:01:10]} 42. exf8=Q+ {[%clk 0:01:00]}  Kxf8 {[%clk 0:01:10]} 43. Bxe6 {[%clk 0:00:58]}  Qxe6 {[%clk 0:01:10]} 44. Qd5 {[%clk 0:00:54]}  Qe2 {[%clk 0:01:05]} 45. Qf7# {[%clk 0:00:52]} 1-0


[Site "https://www.chess.com"]

[Event "Titled Tuesday Blitz August 08 Early 2023"]
[White "Tosic, Srecko"]
[Black "Nikulina, Alena"]
[WhiteFideId "924563"]
[BlackFideId "4172051"]
[WhiteElo "2297"]
[BlackElo "2045"]
[Result "1-0"]
[Round "6"]
[TimeControl "180+1"]
[Date "2023.08.08"]
[WhiteClock "0:00:20"]
[BlackClock "0:00:00"]
[Board "227"]

1. e4 {[%clk 0:03:00]}  c5 {[%clk 0:02:59]} 2. Nf3 {[%clk 0:03:00]}  e6 {[%clk 0:02:59]} 3. d4 {[%clk 0:02:59]}  cxd4 {[%clk 0:02:59]} 4. Nxd4 {[%clk 0:02:58]}  Nf6 {[%clk 0:03:00]} 5. Nc3 {[%clk 0:02:57]}  Nc6 {[%clk 0:02:59]} 6. g3 {[%clk 0:02:57]}  Bb4 {[%clk 0:02:57]} 7. Bg2 {[%clk 0:02:57]}  d5 {[%clk 0:02:56]} 8. exd5 {[%clk 0:02:56]}  Nxd5 {[%clk 0:02:54]} 9. O-O {[%clk 0:02:56]}  O-O {[%clk 0:02:49]} 10. Nxc6 {[%clk 0:02:48]}  bxc6 {[%clk 0:02:48]} 11. Bd2 {[%clk 0:02:47]}  Rb8 {[%clk 0:02:36]} 12. Re1 {[%clk 0:02:35]}  Be7 {[%clk 0:02:25]} 13. Na4 {[%clk 0:02:29]}  Bf6 {[%clk 0:02:08]} 14. Rb1 {[%clk 0:02:22]}  Qe7 {[%clk 0:01:24]} 15. a3 {[%clk 0:02:16]}  Rd8 {[%clk 0:01:14]} 16. Qe2 {[%clk 0:02:05]}  Bd7 {[%clk 0:00:45]} 17. b4 {[%clk 0:01:56]}  a5 {[%clk 0:00:32]} 18. c4 {[%clk 0:01:47]}  Nb6 {[%clk 0:00:20]} 19. Nc5 {[%clk 0:01:26]}  axb4 {[%clk 0:00:18]} 20. axb4 {[%clk 0:01:26]}  Be8 {[%clk 0:00:15]} 21. Bf4 {[%clk 0:01:21]}  Ra8 {[%clk 0:00:14]} 22. Red1 {[%clk 0:01:21]}  Rxd1+ {[%clk 0:00:12]} 23. Rxd1 {[%clk 0:01:22]}  Rd8 {[%clk 0:00:12]} 24. Rxd8 {[%clk 0:01:07]}  Qxd8 {[%clk 0:00:12]} 25. Nb7 {[%clk 0:00:51]}  Qd4 {[%clk 0:00:11]} 26. Nd6 {[%clk 0:00:48]}  Bd7 {[%clk 0:00:09]} 27. Qe3 {[%clk 0:00:23]}  Qa1+ {[%clk 0:00:08]} 28. Bf1 {[%clk 0:00:23]}  Na4 {[%clk 0:00:05]} 29. Qa7 {[%clk 0:00:23]}  e5 {[%clk 0:00:04]} 30. Qxd7 {[%clk 0:00:20]}  g6 {[%clk 0:00:00]} 31. Qxf7+ {[%clk 0:00:20]} 1-0


[Site "https://www.chess.com"]

[Event "Titled Tuesday Blitz August 08 Early 2023"]
[White "Samarth J Rao"]
[Black "abelmat"]
[WhiteFideId "46652370"]
[WhiteElo "2172"]
[BlackElo "1913"]
[Result "1-0"]
[Round "6"]
[TimeControl "180+1"]
[Date "2023.08.08"]
[WhiteClock "0:00:45"]
[BlackClock "0:00:01"]
[Board "229"]

1. d4 {[%clk 0:03:00]}  d5 {[%clk 0:02:59]} 2. Nf3 {[%clk 0:03:01]}  e6 {[%clk 0:02:59]} 3. Bg5 {[%clk 0:02:57]}  Nf6 {[%clk 0:02:56]} 4. Nbd2 {[%clk 0:02:54]}  Be7 {[%clk 0:02:54]} 5. Ne5 {[%clk 0:02:49]}  O-O {[%clk 0:02:53]} 6. c3 {[%clk 0:02:48]}  b6 {[%clk 0:02:51]} 7. e3 {[%clk 0:02:46]}  Bb7 {[%clk 0:02:52]} 8. Bd3 {[%clk 0:02:45]}  c5 {[%clk 0:02:53]} 9. O-O {[%clk 0:02:42]}  Nc6 {[%clk 0:02:54]} 10. f4 {[%clk 0:02:41]}  Bd6 {[%clk 0:02:51]} 11. Rf3 {[%clk 0:02:35]}  Ne7 {[%clk 0:02:26]} 12. Rh3 {[%clk 0:02:31]}  Ne4 {[%clk 0:02:06]} 13. Qh5 {[%clk 0:02:22]}  h6 {[%clk 0:01:38]} 14. Bxh6 {[%clk 0:02:18]}  g6 {[%clk 0:01:36]} 15. Qg4 {[%clk 0:01:33]}  f5 {[%clk 0:01:02]} 16. Qh4 {[%clk 0:01:20]}  Bxe5 {[%clk 0:00:19]} 17. fxe5 {[%clk 0:01:10]}  g5 {[%clk 0:00:14]} 18. Bxg5 {[%clk 0:01:02]}  Nxg5 {[%clk 0:00:13]} 19. Qxg5+ {[%clk 0:01:01]}  Kf7 {[%clk 0:00:13]} 20. Qh5+ {[%clk 0:01:00]}  Ng6 {[%clk 0:00:13]} 21. Qh7+ {[%clk 0:00:58]}  Ke8 {[%clk 0:00:11]} 22. Qxg6+ {[%clk 0:00:58]}  Kd7 {[%clk 0:00:12]} 23. Rh7+ {[%clk 0:00:55]}  Kc8 {[%clk 0:00:06]} 24. Qxe6+ {[%clk 0:00:54]}  Kb8 {[%clk 0:00:07]} 25. Rd7 {[%clk 0:00:48]}  Qe8 {[%clk 0:00:05]} 26. Qd6+ {[%clk 0:00:44]}  Kc8 {[%clk 0:00:01]} 27. Qc7# {[%clk 0:00:45]} 1-0


[Site "https://www.chess.com"]

[Event "Titled Tuesday Blitz August 08 Early 2023"]
[White "Caruana, Fabiano"]
[Black "Erigaisi Arjun"]
[WhiteFideId "2020009"]
[BlackFideId "35009192"]
[WhiteElo "3099"]
[BlackElo "3093"]
[Result "1/2-1/2"]
[Round "7"]
[TimeControl "180+1"]
[Date "2023.08.08"]
[WhiteClock "0:00:07"]
[BlackClock "0:00:40"]
[Board "1"]

1. c4 {[%clk 0:03:00]}  d6 {[%clk 0:03:00]} 2. Nc3 {[%clk 0:03:00]}  g6 {[%clk 0:03:00]} 3. g3 {[%clk 0:03:01]}  Bg7 {[%clk 0:03:01]} 4. Bg2 {[%clk 0:03:01]}  Nf6 {[%clk 0:03:01]} 5. Nf3 {[%clk 0:03:01]}  O-O {[%clk 0:03:02]} 6. O-O {[%clk 0:03:02]}  e5 {[%clk 0:03:03]} 7. d3 {[%clk 0:03:02]}  Nc6 {[%clk 0:03:02]} 8. Rb1 {[%clk 0:03:01]}  a5 {[%clk 0:03:02]} 9. a3 {[%clk 0:03:02]}  h6 {[%clk 0:03:02]} 10. b4 {[%clk 0:03:02]}  axb4 {[%clk 0:03:03]} 11. axb4 {[%clk 0:03:03]}  Be6 {[%clk 0:03:03]} 12. Ne1 {[%clk 0:03:01]}  Qd7 {[%clk 0:03:03]} 13. b5 {[%clk 0:02:58]}  Nd8 {[%clk 0:03:03]} 14. Nc2 {[%clk 0:02:57]}  Bh3 {[%clk 0:03:02]} 15. e4 {[%clk 0:02:51]}  c6 {[%clk 0:02:57]} 16. Be3 {[%clk 0:02:42]}  Bxg2 {[%clk 0:02:40]} 17. Kxg2 {[%clk 0:02:43]}  d5 {[%clk 0:02:40]} 18. bxc6 {[%clk 0:02:38]}  bxc6 {[%clk 0:02:41]} 19. Bb6 {[%clk 0:01:42]}  Ne6 {[%clk 0:02:37]} 20. Nb4 {[%clk 0:01:36]}  Ng5 {[%clk 0:02:30]} 21. f3 {[%clk 0:01:27]}  Rfb8 {[%clk 0:02:25]} 22. Bg1 {[%clk 0:01:18]}  Qe6 {[%clk 0:01:56]} 23. cxd5 {[%clk 0:01:16]}  cxd5 {[%clk 0:01:56]} 24. Nbxd5 {[%clk 0:00:59]}  Nxd5 {[%clk 0:01:56]} 25. Rxb8+ {[%clk 0:00:49]}  Rxb8 {[%clk 0:01:57]} 26. Nxd5 {[%clk 0:00:48]}  Rb2+ {[%clk 0:01:52]} 27. Rf2 {[%clk 0:00:45]}  Rb7 {[%clk 0:01:52]} 28. Rc2 {[%clk 0:00:41]}  Bf8 {[%clk 0:01:51]} 29. Be3 {[%clk 0:00:40]}  Qh3+ {[%clk 0:01:47]} 30. Kg1 {[%clk 0:00:36]}  Ne6 {[%clk 0:01:40]} 31. Qf1 {[%clk 0:00:36]}  Qxf1+ {[%clk 0:01:37]} 32. Kxf1 {[%clk 0:00:37]}  f5 {[%clk 0:01:36]} 33. h4 {[%clk 0:00:25]}  h5 {[%clk 0:01:36]} 34. exf5 {[%clk 0:00:23]}  gxf5 {[%clk 0:01:37]} 35. Nf6+ {[%clk 0:00:23]}  Kf7 {[%clk 0:01:35]} 36. Nxh5 {[%clk 0:00:24]}  Rb4 {[%clk 0:01:23]} 37. Kg2 {[%clk 0:00:15]}  Rb3 {[%clk 0:01:18]} 38. g4 {[%clk 0:00:14]}  fxg4 {[%clk 0:01:16]} 39. fxg4 {[%clk 0:00:15]}  Rxd3 {[%clk 0:01:16]} 40. Kf2 {[%clk 0:00:14]}  Nd4 {[%clk 0:01:10]} 41. Bxd4 {[%clk 0:00:14]}  Rxd4 {[%clk 0:01:09]} 42. Kf3 {[%clk 0:00:11]}  Ke6 {[%clk 0:01:08]} 43. Rc8 {[%clk 0:00:10]}  Be7 {[%clk 0:01:07]} 44. Ng7+ {[%clk 0:00:08]}  Kd7 {[%clk 0:01:07]} 45. Rh8 {[%clk 0:00:08]}  Rf4+ {[%clk 0:01:00]} 46. Kg3 {[%clk 0:00:08]}  Bc5 {[%clk 0:01:00]} 47. Nf5 {[%clk 0:00:07]}  Bf2+ {[%clk 0:01:01]} 48. Kh3 {[%clk 0:00:07]}  e4 {[%clk 0:01:02]} 49. Rh7+ {[%clk 0:00:06]}  Ke6 {[%clk 0:01:01]} 50. Re7+ {[%clk 0:00:06]}  Kf6 {[%clk 0:01:01]} 51. Re8 {[%clk 0:00:06]}  Rf3+ {[%clk 0:00:47]} 52. Kg2 {[%clk 0:00:06]}  Rf4 {[%clk 0:00:48]} 53. Nd6 {[%clk 0:00:05]}  Bxh4 {[%clk 0:00:38]} 54. Rxe4 {[%clk 0:00:05]}  Rxe4 {[%clk 0:00:37]} 55. Nxe4+ {[%clk 0:00:06]}  Kg6 {[%clk 0:00:37]} 56. Nf2 {[%clk 0:00:06]}  Bxf2 {[%clk 0:00:37]} 57. Kxf2 {[%clk 0:00:07]}  Kg5 {[%clk 0:00:38]} 58. Kf1 {[%clk 0:00:07]}  Kg6 {[%clk 0:00:39]} 59. g5 {[%clk 0:00:07]}  Kxg5 {[%clk 0:00:40]} 1/2-1/2


[Site "https://www.chess.com"]

[Event "Titled Tuesday Blitz August 08 Early 2023"]
[White "Martinez Alcantara, Jose Eduardo"]
[Black "Fedoseev, Vladimir"]
[WhiteFideId "3805662"]
[BlackFideId "24130737"]
[WhiteElo "3028"]
[BlackElo "3092"]
[Result "1-0"]
[Round "7"]
[TimeControl "180+1"]
[Date "2023.08.08"]
[WhiteClock "0:00:03"]
[BlackClock "0:00:00"]
[Board "2"]

1. e4 {[%clk 0:03:00]}  e5 {[%clk 0:02:59]} 2. Nf3 {[%clk 0:03:00]}  Nf6 {[%clk 0:02:59]} 3. Nc3 {[%clk 0:03:01]}  Nc6 {[%clk 0:02:58]} 4. h3 {[%clk 0:03:02]}  Bb4 {[%clk 0:02:55]} 5. a3 {[%clk 0:03:01]}  Bxc3 {[%clk 0:02:54]} 6. dxc3 {[%clk 0:03:02]}  Nxe4 {[%clk 0:02:52]} 7. Nxe5 {[%clk 0:03:02]}  Nxe5 {[%clk 0:02:46]} 8. Qd4 {[%clk 0:03:01]}  O-O {[%clk 0:02:36]} 9. Qxe4 {[%clk 0:03:00]}  d5 {[%clk 0:02:34]} 10. Qd4 {[%clk 0:02:51]}  Re8 {[%clk 0:02:34]} 11. Be3 {[%clk 0:02:51]}  b6 {[%clk 0:01:58]} 12. O-O-O {[%clk 0:02:50]}  Bb7 {[%clk 0:01:59]} 13. Bb5 {[%clk 0:02:40]}  c5 {[%clk 0:01:58]} 14. Qf4 {[%clk 0:02:39]}  Re6 {[%clk 0:01:56]} 15. Be2 {[%clk 0:02:31]}  Qe7 {[%clk 0:01:54]} 16. h4 {[%clk 0:02:24]}  Rd8 {[%clk 0:01:53]} 17. h5 {[%clk 0:02:23]}  h6 {[%clk 0:01:32]} 18. Qg3 {[%clk 0:02:22]}  Kh8 {[%clk 0:01:32]} 19. Rhe1 {[%clk 0:01:39]}  a6 {[%clk 0:01:30]} 20. Kb1 {[%clk 0:01:24]}  Re8 {[%clk 0:01:30]} 21. Rh1 {[%clk 0:01:16]}  f5 {[%clk 0:01:27]} 22. Bf4 {[%clk 0:01:12]}  Qf6 {[%clk 0:01:25]} 23. Bf3 {[%clk 0:01:00]}  Nxf3 {[%clk 0:01:20]} 24. gxf3 {[%clk 0:01:01]}  d4 {[%clk 0:01:19]} 25. cxd4 {[%clk 0:00:59]}  cxd4 {[%clk 0:01:20]} 26. Rhg1 {[%clk 0:00:56]}  Re2 {[%clk 0:01:17]} 27. Rd3 {[%clk 0:00:42]}  a5 {[%clk 0:01:10]} 28. Rgd1 {[%clk 0:00:41]}  Rc8 {[%clk 0:01:04]} 29. R3d2 {[%clk 0:00:35]}  d3 {[%clk 0:01:02]} 30. cxd3 {[%clk 0:00:31]}  Re7 {[%clk 0:00:54]} 31. d4 {[%clk 0:00:30]}  Bd5 {[%clk 0:00:52]} 32. Be5 {[%clk 0:00:28]}  Qc6 {[%clk 0:00:51]} 33. Rg1 {[%clk 0:00:28]}  Bxf3 {[%clk 0:00:25]} 34. Bxg7+ {[%clk 0:00:20]}  Kh7 {[%clk 0:00:25]} 35. Be5 {[%clk 0:00:20]}  Bg4 {[%clk 0:00:15]} 36. Ka1 {[%clk 0:00:18]}  Qd5 {[%clk 0:00:10]} 37. f4 {[%clk 0:00:13]}  Rg8 {[%clk 0:00:10]} 38. Rc2 {[%clk 0:00:11]}  Bxh5 {[%clk 0:00:09]} 39. Qh2 {[%clk 0:00:10]}  Rxg1+ {[%clk 0:00:08]} 40. Qxg1 {[%clk 0:00:11]}  Qe6 {[%clk 0:00:05]} 41. d5 {[%clk 0:00:08]}  Qg6 {[%clk 0:00:03]} 42. Rg2 {[%clk 0:00:08]}  Bg4 {[%clk 0:00:03]} 43. d6 {[%clk 0:00:09]}  Rd7 {[%clk 0:00:03]} 44. Qxb6 {[%clk 0:00:09]}  Qe6 {[%clk 0:00:04]} 45. Qc6 {[%clk 0:00:08]}  h5 {[%clk 0:00:04]} 46. Rh2 {[%clk 0:00:09]}  Kg6 {[%clk 0:00:04]} 47. b3 {[%clk 0:00:08]}  Qxb3 {[%clk 0:00:02]} 48. Qxd7 {[%clk 0:00:04]}  Qxa3+ {[%clk 0:00:03]} 49. Kb1 {[%clk 0:00:04]}  Qb3+ {[%clk 0:00:02]} 50. Bb2 {[%clk 0:00:03]}  Qd3+ {[%clk 0:00:00]} 51. Rc2 {[%clk 0:00:03]} 1-0


[Site "https://www.chess.com"]

[Event "Titled Tuesday Blitz August 08 Early 2023"]
[White "Aronian, Levon"]
[Black "Pranesh M"]
[WhiteFideId "13300474"]
[BlackFideId "35028600"]
[WhiteElo "3039"]
[BlackElo "3055"]
[Result "1-0"]
[Round "7"]
[TimeControl "180+1"]
[Date "2023.08.08"]
[WhiteClock "0:00:19"]
[BlackClock "0:01:04"]
[Board "3"]

1. e4 {[%clk 0:03:00]}  e5 {[%clk 0:03:00]} 2. Nf3 {[%clk 0:03:00]}  Nc6 {[%clk 0:03:01]} 3. Bb5 {[%clk 0:03:00]}  a6 {[%clk 0:03:01]} 4. Ba4 {[%clk 0:03:00]}  Nf6 {[%clk 0:03:01]} 5. d3 {[%clk 0:03:01]}  Bc5 {[%clk 0:03:01]} 6. c3 {[%clk 0:02:58]}  O-O {[%clk 0:03:01]} 7. Bg5 {[%clk 0:02:58]}  h6 {[%clk 0:03:00]} 8. Bh4 {[%clk 0:02:58]}  b5 {[%clk 0:02:59]} 9. Bc2 {[%clk 0:02:57]}  Be7 {[%clk 0:03:00]} 10. Bg3 {[%clk 0:02:51]}  d6 {[%clk 0:02:59]} 11. Nbd2 {[%clk 0:02:50]}  Nh5 {[%clk 0:02:56]} 12. Nf1 {[%clk 0:02:50]}  g6 {[%clk 0:02:51]} 13. Ne3 {[%clk 0:02:49]}  Bf6 {[%clk 0:02:45]} 14. h3 {[%clk 0:02:30]}  Nxg3 {[%clk 0:02:41]} 15. fxg3 {[%clk 0:02:30]}  Bg7 {[%clk 0:02:40]} 16. g4 {[%clk 0:02:30]}  Ne7 {[%clk 0:02:38]} 17. O-O {[%clk 0:02:26]}  Bb7 {[%clk 0:02:34]} 18. Bb3 {[%clk 0:02:23]}  d5 {[%clk 0:02:29]} 19. Qc2 {[%clk 0:02:08]}  c5 {[%clk 0:02:27]} 20. exd5 {[%clk 0:02:03]}  Nxd5 {[%clk 0:02:28]} 21. Nxd5 {[%clk 0:01:43]}  Bxd5 {[%clk 0:02:29]} 22. Nd2 {[%clk 0:01:25]}  Rc8 {[%clk 0:02:22]} 23. Bxd5 {[%clk 0:01:05]}  Qxd5 {[%clk 0:02:23]} 24. Ne4 {[%clk 0:01:06]}  f5 {[%clk 0:02:19]} 25. gxf5 {[%clk 0:01:05]}  gxf5 {[%clk 0:02:20]} 26. Ng3 {[%clk 0:01:05]}  Qd7 {[%clk 0:02:12]} 27. Rf3 {[%clk 0:01:01]}  c4 {[%clk 0:02:05]} 28. Raf1 {[%clk 0:01:00]}  f4 {[%clk 0:02:02]} 29. Ne4 {[%clk 0:00:59]}  Rfd8 {[%clk 0:01:59]} 30. Nf2 {[%clk 0:00:46]}  Qf5 {[%clk 0:01:52]} 31. Qe2 {[%clk 0:00:40]}  cxd3 {[%clk 0:01:38]} 32. Rxd3 {[%clk 0:00:41]}  Rxd3 {[%clk 0:01:38]} 33. Nxd3 {[%clk 0:00:41]}  Re8 {[%clk 0:01:31]} 34. Rxf4 {[%clk 0:00:37]}  Qe6 {[%clk 0:01:28]} 35. Rg4 {[%clk 0:00:23]}  e4 {[%clk 0:01:21]} 36. Nf4 {[%clk 0:00:21]}  Qf7 {[%clk 0:01:20]} 37. Nh5 {[%clk 0:00:21]}  Qa7+ {[%clk 0:01:16]} 38. Kh2 {[%clk 0:00:19]}  Re7 {[%clk 0:01:10]} 39. Nxg7 {[%clk 0:00:18]}  Qc7+ {[%clk 0:01:04]} 40. Kh1 {[%clk 0:00:18]}  Rxg7 {[%clk 0:01:05]} 41. Qxe4 {[%clk 0:00:18]}  Qd6 {[%clk 0:00:59]} 42. Rxg7+ {[%clk 0:00:16]}  Kxg7 {[%clk 0:01:00]} 43. Qd4+ {[%clk 0:00:16]}  Qxd4 {[%clk 0:01:00]} 44. cxd4 {[%clk 0:00:17]}  Kf6 {[%clk 0:01:00]} 45. g4 {[%clk 0:00:17]}  Ke6 {[%clk 0:01:01]} 46. h4 {[%clk 0:00:17]}  Kf6 {[%clk 0:01:01]} 47. Kg2 {[%clk 0:00:17]}  Ke6 {[%clk 0:01:02]} 48. Kf3 {[%clk 0:00:17]}  Kd5 {[%clk 0:01:03]} 49. Ke3 {[%clk 0:00:18]}  b4 {[%clk 0:01:03]} 50. b3 {[%clk 0:00:18]}  a5 {[%clk 0:01:04]} 51. Kd3 {[%clk 0:00:18]}  Ke6 {[%clk 0:01:04]} 52. Ke4 {[%clk 0:00:19]}  Kf6 {[%clk 0:01:04]} 53. d5 {[%clk 0:00:19]}  h5 {[%clk 0:01:04]} 54. g5+ {[%clk 0:00:19]} 1-0


[Site "https://www.chess.com"]

[Event "Titled Tuesday Blitz August 08 Early 2023"]
[White "Tabatabaei, M. Amin"]
[Black "Lazavik, Denis"]
[WhiteFideId "12521213"]
[BlackFideId "13515110"]
[WhiteElo "3020"]
[BlackElo "3048"]
[Result "1/2-1/2"]
[Round "7"]
[TimeControl "180+1"]
[Date "2023.08.08"]
[WhiteClock "0:00:42"]
[BlackClock "0:00:22"]
[Board "4"]

1. d4 {[%clk 0:03:00]}  Nf6 {[%clk 0:03:00]} 2. Nf3 {[%clk 0:03:01]}  d5 {[%clk 0:03:00]} 3. c3 {[%clk 0:03:01]}  c6 {[%clk 0:02:57]} 4. Qc2 {[%clk 0:03:01]}  Bg4 {[%clk 0:02:56]} 5. Ne5 {[%clk 0:03:01]}  Bh5 {[%clk 0:02:56]} 6. Qf5 {[%clk 0:03:01]}  Bg6 {[%clk 0:02:31]} 7. Qh3 {[%clk 0:03:01]}  Bxb1 {[%clk 0:02:30]} 8. Rxb1 {[%clk 0:03:02]}  Nbd7 {[%clk 0:02:29]} 9. Bf4 {[%clk 0:03:02]}  e6 {[%clk 0:02:23]} 10. e3 {[%clk 0:02:58]}  Nxe5 {[%clk 0:02:21]} 11. Bxe5 {[%clk 0:02:54]}  Bd6 {[%clk 0:02:14]} 12. f4 {[%clk 0:02:54]}  Bxe5 {[%clk 0:01:58]} 13. fxe5 {[%clk 0:02:54]}  Nd7 {[%clk 0:01:53]} 14. Bd3 {[%clk 0:02:54]}  Qe7 {[%clk 0:01:51]} 15. O-O {[%clk 0:02:51]}  f5 {[%clk 0:01:50]} 16. exf6 {[%clk 0:02:49]}  Nxf6 {[%clk 0:01:49]} 17. Rbe1 {[%clk 0:02:46]}  O-O {[%clk 0:01:47]} 18. e4 {[%clk 0:02:42]}  dxe4 {[%clk 0:01:42]} 19. Bxe4 {[%clk 0:02:42]}  Nxe4 {[%clk 0:01:41]} 20. Rxe4 {[%clk 0:02:40]}  Rxf1+ {[%clk 0:01:41]} 21. Kxf1 {[%clk 0:02:41]}  Rf8+ {[%clk 0:01:41]} 22. Ke2 {[%clk 0:02:36]}  Rf6 {[%clk 0:01:40]} 23. Qg3 {[%clk 0:02:34]}  h6 {[%clk 0:01:37]} 24. Qb8+ {[%clk 0:02:26]}  Kh7 {[%clk 0:01:37]} 25. Qxa7 {[%clk 0:02:05]}  Qf7 {[%clk 0:01:35]} 26. Kd3 {[%clk 0:01:37]}  Rf2 {[%clk 0:01:28]} 27. Qb8 {[%clk 0:01:17]}  Rxg2 {[%clk 0:01:20]} 28. Qf4 {[%clk 0:01:09]}  Qxf4 {[%clk 0:01:02]} 29. Rxf4 {[%clk 0:01:10]}  Rxb2 {[%clk 0:00:57]} 30. Rf7 {[%clk 0:01:07]}  Kg6 {[%clk 0:00:51]} 31. Rc7 {[%clk 0:01:07]}  Rxa2 {[%clk 0:00:48]} 32. Rxb7 {[%clk 0:01:07]}  Rxh2 {[%clk 0:00:47]} 33. Rb6 {[%clk 0:01:07]}  Kf5 {[%clk 0:00:46]} 34. Rxc6 {[%clk 0:01:07]}  g5 {[%clk 0:00:46]} 35. Rc8 {[%clk 0:01:07]}  h5 {[%clk 0:00:45]} 36. Rf8+ {[%clk 0:01:06]}  Kg6 {[%clk 0:00:44]} 37. c4 {[%clk 0:01:07]}  h4 {[%clk 0:00:38]} 38. c5 {[%clk 0:01:04]}  Rh1 {[%clk 0:00:38]} 39. Kd2 {[%clk 0:00:55]}  Rh2+ {[%clk 0:00:25]} 40. Kd3 {[%clk 0:00:42]}  Rh1 {[%clk 0:00:21]} 41. Kd2 {[%clk 0:00:42]}  Rh2+ {[%clk 0:00:22]} 42. Kd3 {[%clk 0:00:42]} 1/2-1/2


[Site "https://www.chess.com"]